fUST/lending_fUST_20250812
["ID","MTS","AMOUNT","RATE_DAILY","PERIOD"]
[378680833,1754957449223,-3047.25,0.00019451,2]
[378680834,1754957449232,-483.47,0.00019451,2]
[378680835,1754957449242,-460.0,0.00019451,2]
[378680836,1754957449251,-460.0,0.00019451,2]
[378680837,1754957449261,-460.0,0.00019451,2]
[378680838,1754957449271,-460.0,0.00019451,2]
[378680839,1754957449280,-581.67,0.00019451,2]
[378680840,1754957449290,-555.92,0.00019451,2]
[378680841,1754957449300,-558.9,0.00019451,2]
[378680842,1754957449310,-489.1,0.00019451,2]
[378680843,1754957449319,-460.0,0.00019451,2]
[378680844,1754957449329,-1239.25,0.00019451,2]
[378680845,1754957449338,-683.2,0.00019451,2]
[378680846,1754957449347,-313.5228744,0.00019451,2]
[378680847,1754957449400,820.61201,0.000279,120]
[378680848,1754957449476,820.61201,0.000288,120]
[378680849,1754957449527,820.61201,0.000297,120]
[378680850,1754957449905,-460.0,0.00019177,2]
[378680851,1754957449914,-146.4771256,0.00019451,2]
[378680852,1754957449923,-3746.54,0.00019451,2]
[378680853,1754957449932,-460.0,0.00019451,2]
[378680854,1754957449941,-1573.64,0.00019451,2]
[378680855,1754957449950,-460.0,0.00019451,2]
[378680856,1754957449959,-460.0,0.00019451,2]
[378680857,1754957449968,-460.0,0.00019451,2]
[378680858,1754957449978,-460.0,0.00019451,2]
[378680859,1754957449986,-460.0,0.00019451,2]
[378680860,1754957449995,-460.0,0.00019451,2]
[378680861,1754957450004,-1415.91022663,0.00019451,2]
[378680862,1754957450015,-430.97977337,0.00019451,2]
[378680863,1754957450024,-903.29,0.00019451,2]
[378680864,1754957450033,-460.0,0.00019451,2]
[378680865,1754957450042,-475.02596355,0.00019451,2]
[378680866,1754957450051,-34.44426308,0.00019451,2]
[378680868,1754957486335,403.528954,0.00013699,2]
[378680869,1754957491194,200.0,0.00029967,120]
[378680870,1754957521314,152.243349,0.00023,30]
[378680871,1754957521673,152.243349,0.00023,30]
[378680872,1754957524546,152.243349,0.00021,20]
[378680874,1754957730778,253.863948,0.00018175,2]
[378680877,1754957779322,3697.8670991,0.00030136,120]
[378680879,1754957811986,155.0,0.000187,2]
[378680880,1754957834123,157.0,0.000187,2]
[378680881,1754957840683,157.0,0.000187,3]
[378680882,1754957851491,158.14726886,0.000187,3]
[378680885,1754957862224,5011.0,0.000301,120]
[378680889,1754958024872,200.0,0.00029,120]
[378680890,1754958035549,215.15992,0.00027,120]
[378680891,1754958035861,215.15992,0.000279,120]
[378680892,1754958036267,215.15992,0.000288,120]
[378680893,1754958036593,215.15992,0.000297,120]
[378680894,1754958100791,185.998662,0.00023,30]
[378680897,1754958375287,24900.0,0.00018075,2]
[378680899,1754958443131,-300.0,0.00019072,2]
[378680900,1754958443151,-1200.0,0.00019072,2]
[378680901,1754958443172,-573.0,0.00019072,2]
[378680902,1754958443192,-300.0,0.00019072,2]
[378680903,1754958443212,-460.0,0.00019073,2]
[378680904,1754958443232,-460.0,0.00019073,2]
[378680905,1754958443253,-460.0,0.00019073,2]
[378680906,1754958443273,-665.7,0.00019073,2]
[378680907,1754958443294,-806.9,0.00019073,2]
[378680908,1754958443313,-460.0,0.00019073,2]
[378680909,1754958443335,-2586.49,0.00019073,2]
[378680910,1754958443355,-460.0,0.00019073,2]
[378680911,1754958443375,-460.0,0.00019073,2]
[378680912,1754958443397,-460.02790009,0.00019073,2]
[378680913,1754958443419,-224.77094593,0.00019073,2]
[378680914,1754958443440,-460.0,0.00019073,2]
[378680915,1754958443666,-469.10099899,0.00019073,2]
[378680916,1754958443687,-460.0,0.00019073,2]
[378680917,1754958443707,-460.0,0.00019073,2]
[378680918,1754958443728,-460.0,0.00019073,2]
[378680919,1754958443751,-460.0,0.00019073,2]
[378680920,1754958443770,-460.0,0.00019073,2]
[378680921,1754958443790,-460.0,0.00019073,2]
[378680922,1754958443811,-460.0,0.00019073,2]
[378680923,1754958443832,-6854.08833555,0.00019074,2]
[378680924,1754958443852,-460.0,0.00019074,2]
[378680925,1754958443871,-460.0,0.00019074,2]
[378680926,1754958443891,-784.57,0.00019074,2]
[378680927,1754958443911,-460.0,0.00019074,2]
[378680928,1754958443930,-460.0,0.00019074,2]
[378680929,1754958443950,-460.0,0.00019074,2]
[378680930,1754958443970,-460.0,0.00019074,2]
[378680931,1754958443991,-460.0,0.00019074,2]
[378680932,1754958444011,-460.0,0.00019074,2]
[378680933,1754958444032,-1221.81,0.00019074,2]
[378680934,1754958444052,-861.66,0.00019074,2]
[378680935,1754958444072,-460.0,0.00019074,2]
[378680936,1754958444092,-246.26827688,0.00019074,2]
[378680937,1754958444112,-500.0,0.00019074,2]
[378680938,1754958444133,-500.0,0.00019074,2]
[378680939,1754958444155,-500.0,0.00019074,2]
[378680940,1754958444176,-500.0,0.00019074,2]
[378680941,1754958444197,-500.0,0.00019074,2]
[378680942,1754958444218,-500.0,0.00019074,2]
[378680943,1754958444240,-500.0,0.00019074,2]
[378680944,1754958444263,-500.0,0.00019074,2]
[378680945,1754958444285,-500.0,0.00019074,2]
[378680946,1754958444308,-500.0,0.00019074,2]
[378680947,1754958444330,-500.0,0.00019074,2]
[378680948,1754958444351,-500.0,0.00019074,2]
[378680949,1754958444373,-500.0,0.00019074,2]
[378680950,1754958444396,-500.0,0.00019074,2]
[378680951,1754958444416,-460.0,0.00019074,2]
[378680952,1754958444439,-500.0,0.00019074,2]
[378680953,1754958444459,-460.0,0.00019074,2]
[378680954,1754958444480,-460.0,0.00019074,2]
[378680955,1754958444502,-460.0,0.00019074,2]
[378680956,1754958444522,-460.0,0.00019074,2]
[378680957,1754958444544,-500.0,0.00019074,2]
[378680958,1754958444565,-500.0,0.00019074,2]
[378680959,1754958444587,-500.0,0.00019074,2]
[378680960,1754958444609,-597.66545541,0.00019074,2]
[378680961,1754958444630,-500.0,0.00019074,2]
[378680962,1754958444650,-460.0,0.00019074,2]
[378680963,1754958444672,-460.0,0.00019074,2]
[378680964,1754958444692,-460.0,0.00019074,2]
[378680965,1754958444712,-494.87,0.00019074,2]
[378680966,1754958444736,-460.0,0.00019074,2]
[378680967,1754958444760,-463.51,0.00019074,2]
[378680968,1754958444779,-1312.06,0.00019074,2]
[378680969,1754958444800,-460.0,0.00019074,2]
[378680970,1754958444821,-460.0,0.00019074,2]
[378680971,1754958444841,-460.0,0.00019074,2]
[378680972,1754958444862,-460.0,0.00019074,2]
[378680973,1754958444882,-460.0,0.00019074,2]
[378680974,1754958444902,-460.0,0.00019074,2]
[378680975,1754958444922,-976.65,0.00019074,2]
[378680976,1754958444943,-460.0,0.00019074,2]
[378680977,1754958444964,-460.0,0.00019074,2]
[378680978,1754958444985,-901.75,0.00019074,2]
[378680979,1754958445006,-608.91,0.00019074,2]
[378680980,1754958445026,-842.07,0.00019074,2]
[378680981,1754958445046,-460.0,0.00019074,2]
[378680982,1754958445067,-460.0,0.00019074,2]
[378680983,1754958445087,-460.0,0.00019074,2]
[378680984,1754958445109,-358.3535803,0.00019074,2]
[378680985,1754958467385,406.950692,0.00013699,2]
[378680987,1754958523911,160.033036,0.0002254,30]
[378680988,1754958524225,160.033036,0.0002208,30]
[378680989,1754958526902,160.033036,0.00020458,20]
[378680990,1754958527184,160.033036,0.00020241,20]
[378680991,1754958550625,5588.00087776,0.00030136,120]
[378680992,1754958584077,160.033037,0.00023,30]
[378681038,1754958631902,-191.22993159,0.00018976,2]
[378681041,1754958631913,-302.78807257,0.00018979,2]
[378681043,1754958631922,-346.76,0.00019065,3]
[378681045,1754958631931,-300.0,0.00019072,2]
[378681047,1754958631940,-460.0,0.00019072,2]
[378681049,1754958631949,-460.0,0.00019072,2]
[378681051,1754958631959,-460.0,0.00019073,2]
[378681053,1754958631968,-460.0,0.00019073,2]
[378681055,1754958631977,-460.0,0.00019073,2]
[378681057,1754958631987,-5060.33,0.00019073,2]
[378681059,1754958631996,-460.0,0.00019073,2]
[378681060,1754958632005,-460.0,0.00019073,2]
[378681062,1754958632015,-902.16,0.00019073,2]
[378681064,1754958632024,-460.0,0.00019073,2]
[378681066,1754958632033,-460.0,0.00019073,2]
[378681068,1754958632043,-4463.63,0.00019073,2]
[378681070,1754958632052,-460.0,0.00019073,2]
[378681072,1754958632061,-666.74,0.00019073,2]
[378681075,1754958632071,-460.0,0.00019073,2]
[378681078,1754958632079,-1427.76,0.00019073,2]
[378681080,1754958632089,-461.12968544,0.00019073,2]
[378681082,1754958632098,-806.38,0.00019073,2]
[378681083,1754958632108,-460.0,0.00019073,2]
[378681085,1754958632118,-2579.66,0.00019073,2]
[378681087,1754958632127,-460.0,0.00019073,2]
[378681089,1754958632136,-460.0,0.00019073,2]
[378681091,1754958632145,-460.0,0.00019073,2]
[378681092,1754958632154,-1359.88,0.00019073,2]
[378681093,1754958632164,-460.93996279,0.00019073,2]
[378681095,1754958632173,-460.0,0.00019073,2]
[378681097,1754958632182,-3900.76,0.00019073,2]
[378681099,1754958632191,-809.92,0.00019073,2]
[378681101,1754958632200,-462.03153307,0.00019073,2]
[378681103,1754958632209,-460.0,0.00019073,2]
[378681105,1754958632220,-460.0,0.00019073,2]
[378681107,1754958632229,-766.99,0.00019073,2]
[378681109,1754958632238,-460.0,0.00019073,2]
[378681111,1754958632247,-460.0,0.00019073,2]
[378681113,1754958632256,-460.0,0.00019073,2]
[378681115,1754958632266,-460.0,0.00019073,2]
[378681117,1754958632275,-460.0,0.00019073,2]
[378681119,1754958632285,-500.0,0.00019074,2]
[378681121,1754958632294,-460.0,0.00019074,2]
[378681123,1754958632304,-1459.43,0.00019074,2]
[378681125,1754958632313,-460.0,0.00019074,2]
[378681127,1754958632322,-632.07,0.00019074,2]
[378681129,1754958632331,-1203.9,0.00019074,2]
[378681131,1754958632341,-460.0,0.00019074,2]
[378681133,1754958632350,-460.0,0.00019074,2]
[378681135,1754958632359,-460.0,0.00019074,2]
[378681137,1754958632368,-460.0,0.00019074,2]
[378681139,1754958632378,-460.0,0.00019074,2]
[378681141,1754958632387,-460.0,0.00019074,2]
[378681143,1754958632398,-460.0,0.00019074,2]
[378681145,1754958632408,-622.11,0.00019074,2]
[378681147,1754958632417,-460.0,0.00019074,2]
[378681149,1754958632426,-460.0,0.00019074,2]
[378681151,1754958632435,-460.0,0.00019074,2]
[378681153,1754958632445,-765.88,0.00019074,2]
[378681155,1754958632454,-460.0,0.00019074,2]
[378681157,1754958632464,-487.63,0.00019074,2]
[378681160,1754958632675,-1223.37,0.00019074,2]
[378681161,1754958632684,-460.0,0.00019074,2]
[378681162,1754958632694,-460.0,0.00019074,2]
[378681163,1754958632703,-460.0,0.00019074,2]
[378681164,1754958632712,-5969.59884954,0.00019074,2]
[378681179,1754958632954,-357.27115046,0.00019074,2]
[378681181,1754958632964,-460.0,0.00019074,2]
[378681183,1754958632973,-460.0,0.00019074,2]
[378681185,1754958632982,-454.38629466,0.00019074,2]
[378681188,1754958633002,-45.61370534,0.00019074,2]
[378681190,1754958633011,-460.0,0.00019074,2]
[378681192,1754958633021,-460.0,0.00019074,2]
[378681194,1754958633030,-500.41,0.00019074,2]
[378681196,1754958633039,-509.65,0.00019074,2]
[378681198,1754958633048,-461.75425252,0.00019074,2]
[378681200,1754958633058,-502.19116533,0.00019074,2]
[378681202,1754958633067,-460.0,0.00019074,2]
[378681204,1754958633076,-460.0,0.00019074,2]
[378681206,1754958633085,-1655.31,0.00019074,2]
[378681208,1754958633095,-460.0,0.00019074,2]
[378681209,1754958633104,-460.0,0.00019074,2]
[378681212,1754958633113,-1264.35,0.00019074,2]
[378681213,1754958633122,-460.0,0.00019074,2]
[378681215,1754958633133,-460.0,0.00019074,2]
[378681217,1754958633142,-682.46,0.00019074,2]
[378681219,1754958633151,-1137.09,0.00019074,2]
[378681221,1754958633161,-460.0,0.00019074,2]
[378681223,1754958633171,-460.0,0.00019074,2]
[378681225,1754958633181,-472.74049455,0.00019074,2]
[378681227,1754958633190,-460.0,0.00019074,2]
[378681229,1754958633199,-2297.14,0.00019074,2]
[378681231,1754958633209,-460.0,0.00019074,2]
[378681233,1754958633218,-460.0,0.00019074,2]
[378681235,1754958633228,-460.0,0.00019074,2]
[378681237,1754958633237,-561.06,0.00019074,2]
[378681239,1754958633247,-460.0,0.00019074,2]
[378681241,1754958633256,-460.0,0.00019074,2]
[378681243,1754958633266,-460.0,0.00019074,2]
[378681246,1754958633276,-392.26436379,0.00019074,2]
[378681248,1754958633285,-460.0,0.00019074,2]
[378681250,1754958633295,-460.0,0.00019074,2]
[378681251,1754958633305,-460.0,0.00019074,2]
[378681252,1754958633314,-1985.46,0.00019074,2]
[378681253,1754958633324,-284.10782562,0.00019074,2]
[378681254,1754958633334,-460.0,0.00019074,2]
[378681255,1754958633343,-460.0,0.00019074,2]
[378681256,1754958633354,-327.87581637,0.00019074,2]
[378681350,1754958638371,-358.71105646,0.00019072,2]
[378681351,1754958638381,-460.0,0.00019072,2]
[378681352,1754958638390,-460.0,0.00019072,2]
[378681353,1754958638400,-460.0,0.00019073,2]
[378681354,1754958638409,-460.0,0.00019073,2]
[378681355,1754958638418,-500.0,0.00019073,2]
[378681356,1754958638427,-500.0,0.00019073,2]
[378681357,1754958638436,-500.0,0.00019073,2]
[378681358,1754958638446,-172.38779382,0.00019073,2]
[378681359,1754958638455,-500.0,0.00019073,2]
[378681360,1754958638464,-500.0,0.00019073,2]
[378681361,1754958638473,-500.0,0.00019073,2]
[378681362,1754958638482,-500.0,0.00019073,2]
[378681363,1754958638492,-69.09810995,0.00019073,2]
[378681364,1754958638503,-430.90189005,0.00019073,2]
[378681365,1754958638513,-500.0,0.00019073,2]
[378681366,1754958638523,-132.12418363,0.00019074,2]
[378681367,1754958638532,-460.0,0.00019074,2]
[378681368,1754958638541,-460.0,0.00019074,2]
[378681369,1754958638550,-460.0,0.00019074,2]
[378681370,1754958638560,-460.0,0.00019074,2]
[378681371,1754958638570,-460.0,0.00019074,2]
[378681372,1754958638578,-556.97,0.00019074,2]
[378681373,1754958638588,-460.0,0.00019074,2]
[378681374,1754958638597,-460.0,0.00019074,2]
[378681375,1754958638606,-538.65908821,0.00019074,2]
[378681376,1754958638615,-460.0,0.00019074,2]
[378681377,1754958638624,-460.0,0.00019074,2]
[378681378,1754958638633,-460.0,0.00019074,2]
[378681379,1754958638643,-835.67,0.00019074,2]
[378681380,1754958638652,-1145.06,0.00019074,2]
[378681381,1754958638662,-1271.75,0.00019074,2]
[378681382,1754958638671,-460.0,0.00019074,2]
[378681383,1754958638681,-460.0,0.00019074,2]
[378681384,1754958638690,-1194.86,0.00019074,2]
[378681385,1754958638699,-1636.68,0.00019074,2]
[378681386,1754958638708,-460.0,0.00019074,2]
[378681387,1754958638719,-4841.01,0.00019074,2]
[378681388,1754958638728,-460.0,0.00019074,2]
[378681389,1754958638737,-460.0,0.00019074,2]
[378681390,1754958638746,-460.0,0.00019074,2]
[378681391,1754958638755,-460.0,0.00019074,2]
[378681392,1754958638764,-461.54423684,0.00019074,2]
[378681393,1754958638774,-460.0,0.00019074,2]
[378681394,1754958638783,-460.0,0.00019074,2]
[378681395,1754958638799,-460.0,0.00019074,2]
[378681396,1754958638808,-460.0,0.00019074,2]
[378681397,1754958638817,-460.0,0.00019074,2]
[378681398,1754958638826,-460.0,0.00019074,2]
[378681399,1754958638835,-460.0,0.00019074,2]
[378681400,1754958638844,-460.0,0.00019074,2]
[378681401,1754958638854,-460.0,0.00019074,2]
[378681402,1754958638865,-1017.52,0.00019074,2]
[378681403,1754958638874,-460.0,0.00019074,2]
[378681404,1754958638884,-460.0,0.00019074,2]
[378681405,1754958638893,-460.0,0.00019074,2]
[378681406,1754958638903,-460.0,0.00019074,2]
[378681407,1754958638912,-460.0,0.00019074,2]
[378681408,1754958638922,-533.26,0.00019074,2]
[378681409,1754958638931,-460.0,0.00019074,2]
[378681410,1754958638940,-460.0,0.00019074,2]
[378681411,1754958638949,-379.94422402,0.00019074,2]
[378681412,1754958638960,-984.28,0.00019074,2]
[378681413,1754958638969,-1334.35,0.00019074,2]
[378681414,1754958638978,-460.0,0.00019074,2]
[378681415,1754958638988,-3022.21,0.00019074,2]
[378681416,1754958638997,-954.96,0.00019074,2]
[378681417,1754958639007,-460.0,0.00019075,2]
[378681418,1754958639016,-460.0,0.00019075,2]
[378681419,1754958639026,-460.0,0.00019075,2]
[378681420,1754958639036,-460.0,0.00019075,2]
[378681421,1754958639046,-460.0,0.00019075,2]
[378681422,1754958639055,-460.0,0.00019075,2]
[378681423,1754958639064,-461.09084379,0.00019075,2]
[378681424,1754958639073,-460.0,0.00019075,2]
[378681425,1754958639082,-460.0,0.00019075,2]
[378681426,1754958639092,-460.0,0.00019075,2]
[378681427,1754958639102,-460.0,0.00019075,2]
[378681428,1754958639111,-460.0,0.00019075,2]
[378681429,1754958639121,-460.0,0.00019075,2]
[378681430,1754958639131,-462.16189847,0.00019075,2]
[378681431,1754958639140,-262.29962447,0.00019075,2]
[378681432,1754958639149,-460.0,0.00019075,2]
[378681433,1754958639163,-460.0,0.00019075,2]
[378681434,1754958639174,-501.54918664,0.00019075,2]
[378681435,1754958639184,-460.0,0.00019075,2]
[378681436,1754958639193,-460.0,0.00019075,2]
[378681437,1754958639204,-236.85490075,0.00019075,2]
[378681438,1754958639214,-460.0,0.00019075,2]
[378681439,1754958639224,-607.64036753,0.00019075,2]
[378681440,1754958639233,-733.37,0.00019075,2]
[378681441,1754958639242,-460.0,0.00019075,2]
[378681442,1754958639251,-460.0,0.00019075,2]
[378681444,1754958639262,-460.0,0.00019075,2]
[378681445,1754958639469,-460.0,0.00019075,2]
[378681446,1754958639479,-460.0,0.00019075,2]
[378681447,1754958639489,-460.0,0.00019075,2]
[378681448,1754958639499,-460.0,0.00019075,2]
[378681449,1754958639509,-460.0,0.00019075,2]
[378681450,1754958639519,-460.0,0.00019075,2]
[378681451,1754958639529,-485.96793181,0.00019075,2]
[378681452,1754958639538,-460.0,0.00019075,2]
[378681453,1754958639548,-460.0,0.00019075,2]
[378681454,1754958639557,-460.0,0.00019075,2]
[378681455,1754958639567,-460.0,0.00019075,2]
[378681456,1754958639576,-460.0,0.00019075,2]
[378681458,1754958639585,-460.0,0.00019075,2]
[378681459,1754958639594,-460.0,0.00019075,2]
[378681460,1754958639603,-460.0,0.00019075,2]
[378681461,1754958639612,-460.0,0.00019075,2]
[378681462,1754958639621,-460.0,0.00019075,2]
[378681463,1754958639630,-460.0,0.00019075,2]
[378681464,1754958639639,-460.0,0.00019075,2]
[378681465,1754958639648,-460.0,0.00019075,2]
[378681466,1754958639659,-460.0,0.00019075,2]
[378681467,1754958639667,-460.0,0.00019075,2]
[378681468,1754958639677,-460.0,0.00019075,2]
[378681470,1754958639687,-460.0,0.00019075,2]
[378681472,1754958639696,-460.0,0.00019075,2]
[378681473,1754958639705,-460.0,0.00019075,2]
[378681474,1754958639714,-460.0,0.00019075,2]
[378681475,1754958639724,-460.0,0.00019075,2]
[378681476,1754958639733,-463.20317747,0.00019075,2]
[378681477,1754958639742,-460.0,0.00019075,2]
[378681478,1754958639752,-460.0,0.00019075,2]
[378681479,1754958639761,-460.0,0.00019075,2]
[378681480,1754958639770,-460.0,0.00019075,2]
[378681481,1754958639778,-460.0,0.00019075,2]
[378681482,1754958639789,-460.0,0.00019075,2]
[378681483,1754958639800,-462.36580427,0.00019075,2]
[378681484,1754958639810,-460.0,0.00019075,2]
[378681485,1754958639819,-460.0,0.00019075,2]
[378681486,1754958639829,-460.0,0.00019075,2]
[378681487,1754958639838,-460.0,0.00019075,2]
[378681488,1754958639847,-460.0,0.00019075,2]
[378681489,1754958639857,-460.0,0.00019075,2]
[378681490,1754958639867,-460.0,0.00019075,2]
[378681491,1754958639877,-380.93059596,0.00019075,2]
[378681492,1754958639886,-460.0,0.00019075,2]
[378681493,1754958639896,-460.0,0.00019075,2]
[378681494,1754958639907,-460.0,0.00019075,2]
[378681495,1754958639918,-460.0,0.00019075,2]
[378681496,1754958639927,-460.0,0.00019075,2]
[378681497,1754958639936,-460.0,0.00019075,2]
[378681498,1754958639945,-460.0,0.00019075,2]
[378681499,1754958639955,-460.0,0.00019075,2]
[378681500,1754958639964,-207.56785837,0.00019075,2]
[378681501,1754958639973,-460.0,0.00019075,2]
[378681502,1754958639982,-461.98699699,0.00019075,2]
[378681503,1754958639991,-460.0,0.00019075,2]
[378681504,1754958640000,-460.0,0.00019075,2]
[378681505,1754958640009,-460.0,0.00019075,2]
[378681506,1754958640018,-460.0,0.00019075,2]
[378681507,1754958640027,-464.09165306,0.00019075,2]
[378681508,1754958640036,-460.0,0.00019075,2]
[378681509,1754958640045,-460.0,0.00019075,2]
[378681510,1754958640054,-268.2110523,0.00019075,2]
[378681511,1754958640063,-460.0,0.00019075,2]
[378681512,1754958640072,-460.0,0.00019075,2]
[378681513,1754958640081,-574.87662672,0.00019075,2]
[378681514,1754958640091,-460.0,0.00019075,2]
[378681515,1754958640100,-460.0,0.00019075,2]
[378681516,1754958640109,-460.0,0.00019075,2]
[378681517,1754958640118,-460.0,0.00019075,2]
[378681518,1754958640127,-460.0,0.00019075,2]
[378681519,1754958640136,-460.0,0.00019075,2]
[378681520,1754958640145,-460.0,0.00019075,2]
[378681521,1754958640155,-460.0,0.00019075,2]
[378681522,1754958640165,-460.0,0.00019075,2]
[378681523,1754958640174,-460.0,0.00019075,2]
[378681524,1754958640184,-460.0,0.00019075,2]
[378681525,1754958640193,-460.0,0.00019075,2]
[378681526,1754958640202,-460.0,0.00019075,2]
[378681527,1754958640211,-460.0,0.00019075,2]
[378681528,1754958640220,-460.0,0.00019075,2]
[378681529,1754958640229,-460.0,0.00019075,2]
[378681530,1754958640239,-554.14957266,0.00019075,2]
[378681531,1754958640247,-1306.28,0.00019075,2]
[378681532,1754958640256,-460.0,0.00019075,2]
[378681533,1754958640266,-460.0,0.00019075,2]
[378681534,1754958640275,-460.0,0.00019075,2]
[378681535,1754958640284,-460.0,0.00019075,2]
[378681536,1754958640293,-460.0,0.00019075,2]
[378681537,1754958640302,-476.02068035,0.00019075,2]
[378681538,1754958640312,-460.0,0.00019075,2]
[378681539,1754958640321,-460.0,0.00019075,2]
[378681540,1754958640330,-460.0,0.00019075,2]
[378681541,1754958640339,-468.69196498,0.00019075,2]
[378681542,1754958640349,-529.02,0.00019075,2]
[378681543,1754958640358,-460.0,0.00019075,2]
[378681544,1754958640367,-460.0,0.00019075,2]
[378681545,1754958640376,-460.0,0.00019075,2]
[378681546,1754958640385,-460.0,0.00019075,2]
[378681547,1754958640394,-460.0,0.00019075,2]
[378681548,1754958640404,-770.91,0.00019075,2]
[378681549,1754958640413,-694.52,0.00019075,2]
[378681550,1754958640422,-460.0,0.00019075,2]
[378681551,1754958640431,-460.0,0.00019075,2]
[378681552,1754958640440,-723.93,0.00019075,2]
[378681553,1754958640449,-460.0,0.00019075,2]
[378681554,1754958640458,-460.0,0.00019075,2]
[378681555,1754958640468,-460.0,0.00019075,2]
[378681556,1754958640478,-460.0,0.00019075,2]
[378681557,1754958640487,-460.0,0.00019075,2]
[378681558,1754958640496,-460.0,0.00019075,2]
[378681559,1754958640505,-460.0,0.00019075,2]
[378681560,1754958640513,-460.0,0.00019075,2]
[378681561,1754958640522,-460.0,0.00019075,2]
[378681562,1754958640532,-460.0,0.00019075,2]
[378681563,1754958640541,-307.1921634,0.00019075,2]
[378681564,1754958640550,-460.0,0.00019075,2]
[378681565,1754958640559,-463.99138468,0.00019075,2]
[378681566,1754958640568,-460.0,0.00019075,2]
[378681567,1754958640577,-460.0,0.00019075,2]
[378681568,1754958640587,-460.0,0.00019075,2]
[378681569,1754958640596,-460.0,0.00019075,2]
[378681570,1754958640605,-516.85,0.00019075,2]
[378681571,1754958640614,-460.0,0.00019075,2]
[378681572,1754958640624,-460.0,0.00019075,2]
[378681573,1754958640633,-460.0,0.00019075,2]
[378681574,1754958640642,-460.0,0.00019075,2]
[378681575,1754958640652,-460.0,0.00019075,2]
[378681576,1754958640662,-460.0,0.00019075,2]
[378681577,1754958640671,-471.81070131,0.00019075,2]
[378681578,1754958640680,-460.0,0.00019075,2]
[378681579,1754958640690,-531.45179199,0.00019075,2]
[378681580,1754958640699,-460.0,0.00019075,2]
[378681581,1754958640709,-460.0,0.00019075,2]
[378681582,1754958640718,-460.0,0.00019075,2]
[378681583,1754958640727,-460.0,0.00019075,2]
[378681584,1754958640737,-460.0,0.00019075,2]
[378681585,1754958640746,-460.0,0.00019075,2]
[378681586,1754958640755,-460.0,0.00019075,2]
[378681587,1754958640765,-460.0,0.00019075,2]
[378681588,1754958640774,-460.0,0.00019075,2]
[378681589,1754958640783,-687.7,0.00019075,2]
[378681590,1754958640796,-460.0,0.00019075,2]
[378681591,1754958640805,-478.38,0.00019075,2]
[378681592,1754958640815,-460.0,0.00019075,2]
[378681593,1754958640824,-581.2765512,0.00019075,2]
[378681594,1754958640834,-582.02,0.00019075,2]
[378681595,1754958640843,-460.0,0.00019075,2]
[378681596,1754958640852,-460.0,0.00019075,2]
[378681597,1754958640861,-183.14996323,0.00019075,2]
[378681598,1754958640872,-460.0,0.00019075,2]
[378681599,1754958640881,-460.0,0.00019075,2]